Workbook

Sheet Sheet1
A1: 排放量计算(2024年四季度）
A2: 大气污染物排放量
A3: 排污口编号 | B3: 排污口名称 | C3: 污染物名称 | D3: 浓度(mg/m³) | G3: 流量(万m³) | J3: 排放量（吨） | N3: 备注
D4: 10月 | E4: 11月 | F4: 12月 | G4: 10月 | H4: 11月 | I4: 12月 | J4: 10月 | K4: 11月 | L4: 12月 | M4: 合计
A5: DA001 | B5: 第一生产区熔炼炉、还原炉、烟化炉卫生收尘排口 | C5: 二氧化硫 | D5: 17.62 | E5: 3.51 | F5: 16.78 | G5: 11091.1250 | H5: 10137.9730 | I5: 11318.3330 | J5: 1.948 | K5: 0.520 | L5: 1.993 | M5: =J5+K5+L5 -> 4.461000 | N5: 数据来源于第三方监测报告及在线监测数据
C6: 颗粒物 | D6: 28.71 | E6: 26.37 | F6: 17.87 | J6: 3.181 | K6: 2.642 | L6: 2.019 | M6: =J6+K6+L6 -> 7.842000
C7: 汞及其 化合物 | D7: 3.2e-05 | E7: 0.000107 | F7: 0.000165 | J7: =D7*G5*10000/(1000*1000*1000) -> 0.000004 | K7: =E7*H5*10000/(1000*1000*1000) -> 0.000011 | L7: =F7*I5*10000/(1000*1000*1000) -> 0.000019 | M7: =SUM(J7:L7) -> 0.000033
C8: 铅及其 化合物 | D8: 0.04 | E8: 0.02 | F8: 0.132 | J8: =D8*G5*10000/(1000*1000*1000) -> 0.004436 | K8: =E8*H5*10000/(1000*1000*1000) -> 0.002028 | L8: =F8*I5*10000/(1000*1000*1000) -> 0.014940 | M8: =SUM(J8:L8) -> 0.021404
A9: DA002 | B9: 第一生产区还原炉、烟化炉废气排口 | C9: 二氧化硫 | D9: 41.452 | E9: 20.976 | F9: 9.3 | G9: 2155.2730 | H9: 2028.7750 | I9: 2379.3020 | J9: 0.883033 | K9: 0.402402 | L9: 0.222000 | M9: =SUM(J9:L9) -> 1.507435 | N9: 数据来源于第三方监测报告及在线监测数据
C10: 颗粒物 | D10: 10.002 | E10: 8.098 | F10: 5.04 | J10: 0.215009 | K10: 0.159400 | L10: 0.120000 | M10: =J10+K10+L10 -> 0.494409
C11: 汞及其 化合物 | D11: 0.00516 | E11: 0.000138 | F11: 0.000203 | J11: =D11*G9*10000/(1000*1000*1000) -> 0.000111 | K11: =E11*H9*10000/(1000*1000*1000) -> 0.000003 | L11: =F11*I9*10000/(1000*1000*1000) -> 0.000005 | M11: =J11+K11+L11 -> 0.000119
C12: 铅及其 化合物 | D12: 1.69 | E12: 1.29 | F12: 0.185 | J12: =D12*G9*10000/(1000*1000*1000) -> 0.036424 | K12: =E12*H9*10000/(1000*1000*1000) -> 0.026171 | L12: =F12*I9*10000/(1000*1000*1000) -> 0.004402 | M12: =SUM(J12:L12) -> 0.066997
C13: 硫酸雾 | D13: 15.8 | E13: 15.8 | F13: 15.8 | J13: =D13*G9*10000/(1000*1000*1000) -> 0.340533 | K13: =E13*H9*10000/(1000*1000*1000) -> 0.320546 | L13: =F13*I9*10000/(1000*1000*1000) -> 0.375930 | M13: 1.037009
A14: DA003 | B14: 第一生产区1#烟气制酸排口 | C14: 二氧化硫 | D14: 51.25 | E14: 49.04 | F14: 51.59 | G14: 3028.4190 | H14: 3016.6870 | I14: 3671.1530 | J14: 1.561 | K14: 1.482 | L14: 1.873 | M14: 4.916000 | N14: 数据来源于第三方监测报告及在线监测数据
C15: 颗粒物 | D15: 0.71 | E15: 1.07 | F15: 2.85 | J15: 0.022 | K15: 0.033 | L15: 0.102 | M15: 0.157000
C16: 硫酸雾 | D16: 8.5 | E16: 8.5 | F16: 8.5 | J16: =D16*G14*10000/(1000*1000*1000) -> 0.257416 | K16: =E16*H14*10000/(1000*1000*1000) -> 0.256418 | L16: =F16*I14*10000/(1000*1000*1000) -> 0.312048 | M16: 0.825882
C17: 铅及其 化合物 | D17: 0.488 | E17: 0.444 | F17: 0.06 | J17: =D17*G14*10000/(1000*1000*1000) -> 0.014779 | K17: =E17*H14*10000/(1000*1000*1000) -> 0.013394 | L17: =F17*I14*10000/(1000*1000*1000) -> 0.002203 | M17: 0.030375
C18: 汞及其 化合物 | D18: 0.00139 | E18: 0.000148 | F18: 0.00111 | J18: =D18*G14*10000/(1000*1000*1000) -> 0.000042 | K18: =E18*H14*10000/(1000*1000*1000) -> 0.000004 | L18: =F18*I14*10000/(1000*1000*1000) -> 0.000041 | M18: 0.000087
A19: DA004 | B19: 第一生产区熔铅锅尾气排口 | C19: 颗粒物 | D19: 6.8 | E19: 6.8 | F19: 6.8 | G19: =14885*31*24/10000 -> 1107.4440 | H19: =14885*30*24/10000 -> 1071.7200 | I19: =14885*31*24/10000 -> 1107.4440 | J19: =D19*G19*10000/(1000*1000*1000) -> 0.075306 | K19: =E19*H19*10000/(1000*1000*1000) -> 0.072877 | L19: =F19*I19*10000/(1000*1000*1000) -> 0.075306 | M19: =J19+K19+L19 -> 0.223489 | N19: 数据来源于第三方监测报告
C20: 铅及其 化合物 | D20: 0.526 | E20: 0.526 | F20: 0.526 | J20: =D20*G19*10000/(1000*1000*1000) -> 0.005825 | K20: =E20*H19*10000/(1000*1000*1000) -> 0.005637 | L20: =F20*I19*10000/(1000*1000*1000) -> 0.005825 | M20: =J20+K20+L20 -> 0.017288
A21: DA005 | B21: 第一生产区多膛炉尾气排口 | C21: 二氧化硫 | J21: 0.000000 | K21: 0.000000 | L21: 0.000000 | M21: 0.000000 | N21: 全季度停产
C22: 颗粒物 | J22: 0.000000 | K22: 0.000000 | L22: 0.000000 | M22: 0.000000
C23: 汞及其 化合物 | J23: 0.000000 | K23: 0.000000 | L23: 0.000000 | M23: 0.000000
C24: 铅及其 化合物 | J24: 0.000000 | K24: 0.000000 | L24: 0.000000 | M24: 0.000000
A25: DA006 | B25: 第二生产区沸腾焙烧炉排口 | C25: 二氧化硫 | J25: 0.000000 | K25: 0.000000 | L25: 0.000000 | M25: =J25+K25+L25 -> 0.000000 | N25: 全季度停产
C26: 颗粒物 | J26: 0.000000 | K26: 0.000000 | L26: 0.000000 | M26: =J26+K26+L26 -> 0.000000
C27: 汞及其化合物 | J27: =D27*G25*10000/1000/1000 -> 0.000000 | K27: =E27*H25*10000/1000/1000 -> 0.000000 | L27: =F27*I25*10000/1000/1000 -> 0.000000 | M27: 0.000000
C28: 铅及其 化合物 | J28: 0.000000 | K28: 0.000000 | L28: 0.000000 | M28: 0.000000
C29: 硫酸雾 | J29: 0.000000 | K29: 0.000000 | L29: 0.000000 | M29: 0.000000
A30: DA007 | B30: 第一生产区侧吹还原炉卫生收生废气排口 | C30: 二氧化硫 | D30: 114.908 | E30: 87.73 | G30: 900.1840 | H30: 1141.7050 | J30: 1.285000 | K30: 1.931000 | L30: 0.000000 | M30: =J30+K30+L30 -> 3.216000 | N30: 12月全月停产，数据来源于第三方监测报告及在线监测数据
C31: 颗粒物 | D31: 19.07 | E31: 20.52 | J31: 0.217000 | K31: 0.270000 | L31: 0.000000 | M31: =J31+K31+L31 -> 0.487000
C32: 汞及其 化合物 | D32: 0.00178 | E32: 0.00178 | J32: =D32*G30*10000/(1000*1000*1000) -> 0.000016 | K32: =E32*H30*10000/(1000*1000*1000) -> 0.000020 | L32: =F32*I30*10000/(1000*1000*1000) -> 0.000000 | M32: =J32+K32+L32 -> 0.000036
C33: 铅及其 化合物 | D33: 3.04 | E33: 3.04 | J33: =D33*G30*10000/(1000*1000*1000) -> 0.027366 | K33: =E33*H30*10000/(1000*1000*1000) -> 0.034708 | L33: =F33*I30*10000/(1000*1000*1000) -> 0.000000 | M33: =J33+K33+L33 -> 0.062073
A34: DA009 | B34: 第二生产区熔铸一系统尾气排口 | C34: 颗粒物 | D34: 6.6 | E34: 6.6 | F34: 6.6 | G34: =22500*24*31/(10000) -> 1674.0000 | H34: =22500*24*30/(10000) -> 1620.0000 | I34: =22500*24*31/(10000) -> 1674.0000 | J34: =D34*G34*10000/(1000*1000*1000) -> 0.110484 | K34: =E34*H34*10000/(1000*1000*1000) -> 0.106920 | L34: =F34*I34*10000/(1000*1000*1000) -> 0.110484 | M34: =SUM(J34:L34) -> 0.327888 | N34: 数据来源于监测报告
A35: DA135 | B35: 第一生产区阳极熔铅锅尾气排口 | C35: 颗粒物 | D35: 8.8 | E35: 8.8 | F35: 8.8 | G35: =2805*31*24/10000 -> 208.6920 | H35: =2805*30*24/10000 -> 201.9600 | I35: =2805*31*24/10000 -> 208.6920 | J35: =D35*G35*10000/(1000*1000*1000) -> 0.018365 | K35: =E35*H35*10000/(1000*1000*1000) -> 0.017772 | L35: =F35*I35*10000/(1000*1000*1000) -> 0.018365 | M35: =J35+K35+L35 -> 0.054502 | N35: 数据来源于监测报告
C36: 铅及其 化合物 | D36: 0.05 | E36: 0.05 | F36: 0.05 | J36: =D36*G35*10000/(1000*1000*1000) -> 0.000104 | K36: =E36*H35*10000/(1000*1000*1000) -> 0.000101 | L36: =F36*I35*10000/(1000*1000*1000) -> 0.000104 | M36: 0.000310
A37: DA136 | B37: 第一生产区反射炉排口 | C37: 二氧化硫 | D37: 16 | E37: 16 | F37: 16 | G37: =17891*24*31/10000 -> 1331.0904 | H37: =17891*24*30/10000 -> 1288.1520 | I37: =17891*24*31/10000 -> 1331.0904 | J37: =D37*G37*10000/(1000*1000*1000) -> 0.212974 | K37: =E37*H37*10000/(1000*1000*1000) -> 0.206104 | L37: =F37*I37*10000/(1000*1000*1000) -> 0.212974 | M37: 0.632053 | N37: 数据来源于监测报告
C38: 颗粒物 | D38: 2.7 | E38: 2.7 | F38: 2.7 | J38: =D38*G37*10000/(1000*1000*1000) -> 0.035939 | K38: =E38*H37*10000/(1000*1000*1000) -> 0.034780 | L38: =F38*I37*10000/(1000*1000*1000) -> 0.035939 | M38: 0.106659
C39: 汞及其 化合物 | D39: 0.000786 | E39: 0.000786 | F39: 0.000786 | J39: =D39*G37*10000/(1000*1000*1000) -> 0.000010 | K39: =E39*H37*10000/(1000*1000*1000) -> 0.000010 | L39: =F39*I37*10000/(1000*1000*1000) -> 0.000010 | M39: 0.000031
C40: 铅及其 化合物 | D40: 0.127 | E40: 0.127 | F40: 0.127 | J40: =D40*G37*10000/(1000*1000*1000) -> 0.001690 | K40: =E40*H37*10000/(1000*1000*1000) -> 0.001636 | L40: =F40*I37*10000/(1000*1000*1000) -> 0.001690 | M40: 0.005017
A41: DA138 | B41: 第二生产区3#沸腾焙烧炉排口 | C41: 二氧化硫 | J41: 0.000000 | K41: 0.000000 | L41: 0.000000 | M41: =SUM(J41:L41) -> 0.000000 | N41: 全季度停产
C42: 颗粒物 | J42: 0.000000 | K42: 0.000000 | L42: 0.000000 | M42: =J42+K42+L42 -> 0.000000
C43: 汞及其 化合物 | J43: =D43*G41*10000/(1000*1000*1000) -> 0.000000 | K43: =E43*H41*10000/(1000*1000*1000) -> 0.000000 | L43: =F43*I41*10000/(1000*1000*1000) -> 0.000000 | M43: =SUM(J43:L43) -> 0.000000
C44: 铅及其 化合物 | J44: =D44*G41*10000/(1000*1000*1000) -> 0.000000 | K44: =E44*H41*10000/(1000*1000*1000) -> 0.000000 | L44: =F44*I41*10000/(1000*1000*1000) -> 0.000000 | M44: 0.000000
C45: 硫酸雾 | J45: =D45*G41*10000/(1000*1000*1000) -> 0.000000 | K45: =E45*H41*10000/(1000*1000*1000) -> 0.000000 | L45: =F45*I41*10000/(1000*1000*1000) -> 0.000000 | M45: 0.000000
A46: DA251 | B46: 第一生产区多膛 炉排放口 | C46: 颗粒物 | J46: =D46*G46*10000/(1000*1000*1000) -> 0.000000 | K46: =E46*H46*10000/(1000*1000*1000) -> 0.000000 | L46: =F46*I46*10000/(1000*1000*1000) -> 0.000000 | M46: 0.000000 | N46: 全季度停产
C47: 二氧化硫 | J47: =D47*G46*10000/(1000*1000*1000) -> 0.000000 | K47: =E47*H46*10000/(1000*1000*1000) -> 0.000000 | L47: =F47*I46*10000/(1000*1000*1000) -> 0.000000 | M47: 0.000000
C48: 铅及其 化合物 | J48: =D48*G46*10000/(1000*1000*1000) -> 0.000000 | K48: =E48*H46*10000/(1000*1000*1000) -> 0.000000 | L48: =F48*I46*10000/(1000*1000*1000) -> 0.000000 | M48: 0.000000
C49: 汞及其 化合物 | J49: =D49*G46*10000/(1000*1000*1000) -> 0.000000 | K49: =E49*H46*10000/(1000*1000*1000) -> 0.000000 | L49: =F49*I46*10000/(1000*1000*1000) -> 0.000000 | M49: 0.000000
A50: DA252 | B50: 第二生产区二车间锅炉房废气 排口 | C50: 二氧化硫 | J50: 0.000000 | K50: 0.000000 | L50: 0.000000 | M50: =J50+K50+L50 -> 0.000000 | N50: 全季度停产
C51: 氮氧化物 | J51: 0.000000 | K51: 0.000000 | L51: 0.000000 | M51: =J51+K51+L51 -> 0.000000
C52: 颗粒物 | J52: =D52*G45*10000/(1000*1000*1000) -> 0.000000 | K52: =E52*H45*10000/(1000*1000*1000) -> 0.000000 | L52: =F52*I45*10000/(1000*1000*1000) -> 0.000000 | M52: =J52+K52+L52 -> 0.000000
C53: 汞及其 化合物 | J53: =D53*G50*10000/(1000*1000*1000) -> 0.000000 | K53: =E53*H50*10000/(1000*1000*1000) -> 0.000000 | L53: =F53*I50*10000/(1000*1000*1000) -> 0.000000 | M53: =SUM(J53:L53) -> 0.000000
A54: DA248 | B54: 高纯锌生产区沸腾焙烧炉烟囱排口 | C54: 二氧化硫 | D54: 129.71 | E54: 265.01 | F54: 251.54 | G54: 1740.1600 | H54: 3796.9500 | I54: 3917.4600 | J54: 2.641000 | K54: 9.706800 | L54: 9.857700 | M54: =J54+K54+L54 -> 22.205500 | N54: 数据来源于在线监测数据及监测报告。
C55: 颗粒物 | D55: 2.24 | E55: 0.64 | F55: 0.57 | J55: 0.036400 | K55: 0.024200 | L55: 0.022300 | M55: =SUM(J55:L55) -> 0.082900
C56: 汞及其 化合物 | D56: 0.000492 | E56: 0.000381 | F56: 0.000419 | J56: =D56*G54*10000/(1000*1000*1000) -> 0.000009 | K56: =E56*H54*10000/(1000*1000*1000) -> 0.000014 | L56: =F56*I54*10000/(1000*1000*1000) -> 0.000016 | M56: =SUM(J56:L56) -> 0.000039
C57: 铅及其 化合物 | D57: 0.08 | E57: 0.06 | F57: 0.05 | J57: =D57*G54*10000/(1000*1000*1000) -> 0.001392 | K57: =E57*H54*10000/(1000*1000*1000) -> 0.002278 | L57: =F57*I54*10000/(1000*1000*1000) -> 0.001959 | M57: =SUM(J57:L57) -> 0.005629
C58: 硫酸雾 | D58: 12 | E58: 12 | F58: 12 | J58: =D58*G54*10000/(1000*1000*1000) -> 0.208819 | K58: =E58*H54*10000/(1000*1000*1000) -> 0.455634 | L58: =F58*I54*10000/(1000*1000*1000) -> 0.470095 | M58: =SUM(J58:L58) -> 1.134548
A59: DA249 | B59: 高纯锌生产区感应电炉排口 | C59: 颗粒物 | D59: 6.9 | E59: 6.9 | F59: 6.9 | G59: =31122*24*31/10000 -> 2315.4768 | H59: =31122*24*30/10000 -> 2240.7840 | I59: =31122*24*31/10000 -> 2315.4768 | J59: =D59*G59*10000/(1000*1000*1000) -> 0.159768 | K59: 0.154614 | L59: 0.159768 | M59: =SUM(J59:L59) -> 0.474150 | N59: 数据来源于监测报告
A60: DA255 | B60: 渣处理生产区干燥废气排口 | C60: 颗粒物 | D60: 6.7 | E60: 6.7 | F60: 6.7 | G60: =57828*24*31/10000 -> 4302.4032 | H60: =57828*24*30/10000 -> 4163.6160 | I60: =57828*24*31/10000 -> 4302.4032 | J60: 0.288261 | K60: 0.278962 | L60: 0.288261 | M60: =J60+K60+L60 -> 0.855484 | N60: 数据来源于监测报告
C61: 二氧化硫 | D61: 3 | E61: 3 | F61: 3 | J61: =D61*G60*10000/(1000*1000*1000) -> 0.129072 | K61: =E61*H60*10000/(1000*1000*1000) -> 0.124908 | L61: =F61*I60*10000/(1000*1000*1000) -> 0.129072 | M61: 0.383053
C62: 氮氧化物 | D62: 38 | E62: 38 | F62: 38 | J62: =D62*G60*10000/(1000*1000*1000) -> 1.634913 | K62: =E62*H60*10000/(1000*1000*1000) -> 1.582174 | L62: =F62*I60*10000/(1000*1000*1000) -> 1.634913 | M62: 4.852001
C63: 铅及其 化合物 | D63: 0.0803 | E63: 0.0803 | F63: 0.0803 | J63: =D63*G60*10000/(1000*1000*1000) -> 0.003455 | K63: =E63*H60*10000/(1000*1000*1000) -> 0.003343 | L63: =F63*I60*10000/(1000*1000*1000) -> 0.003455 | M63: 0.010253
A64: DA256 | B64: 渣处理生产区原料、输送等生产点废气排口 | C64: 颗粒物 | D64: 7.1 | E64: 7.1 | F64: 7.1 | G64: =69341*24*31/10000 -> 5158.9704 | H64: =69341*24*30/10000 -> 4992.5520 | I64: =69341*24*31/10000 -> 5158.9704 | J64: =D64*G64*10000/(1000*1000*1000) -> 0.366287 | K64: =E64*H64*10000/(1000*1000*1000) -> 0.354471 | L64: =F64*I64*10000/(1000*1000*1000) -> 0.366287 | M64: 1.087045 | N64: 数据来源于监测报告
C65: 铅及其 化合物 | D65: 0.08 | E65: 0.08 | F65: 0.08 | J65: =D65*G64*10000/(1000*1000*1000) -> 0.004127 | K65: =E65*H64*10000/(1000*1000*1000) -> 0.003994 | L65: =F65*I64*10000/(1000*1000*1000) -> 0.004127 | M65: 0.012248
A66: DA257 | B66: 渣处理生产区粉煤制备系统废气排口 | C66: 颗粒物 | D66: 8.8 | E66: 8.8 | F66: 8.8 | G66: =12101*24*31/10000 -> 900.3144 | H66: =12101*24*30/10000 -> 871.2720 | I66: =12101*24*31/10000 -> 900.3144 | J66: =D66*G66*10000/(1000*1000*1000) -> 0.079228 | K66: =E66*H66*10000/(1000*1000*1000) -> 0.076672 | L66: =F66*I66*10000/(1000*1000*1000) -> 0.079228 | M66: =SUM(J66:L66) -> 0.235127 | N66: 数据来源于监测报告
C67: 二氧化硫 | D67: 3 | E67: 3 | F67: 3 | J67: =D67*G66*10000/(1000*1000*1000) -> 0.027009 | K67: =E67*H66*10000/(1000*1000*1000) -> 0.026138 | L67: =F67*I66*10000/(1000*1000*1000) -> 0.027009 | M67: =SUM(J67:L67) -> 0.080157
C68: 氮氧化物 | D68: 12 | E68: 12 | F68: 12 | J68: =D68*G66*10000/(1000*1000*1000) -> 0.108038 | K68: =E68*H66*10000/(1000*1000*1000) -> 0.104553 | L68: =F68*I66*10000/(1000*1000*1000) -> 0.108038 | M68: =SUM(J68:L68) -> 0.320628
A69: DA258 | B69: 渣处理生产区制酸尾气烟囱排口 | C69: 颗粒物 | D69: 0.67 | E69: 0.94 | F69: 0.48 | G69: 5816.1360 | H69: 5453.3990 | I69: 5690.1000 | J69: 0.039000 | K69: 0.050000 | L69: 0.026000 | M69: =SUM(J69:L69) -> 0.115000 | N69: 数据来源于在线监测数据及第三方监测报告
C70: 二氧化硫 | D70: 90.21 | E70: 74.33 | F70: 52.72 | J70: 5.272000 | K70: 4.193000 | L70: 3.110000 | M70: =J70+K70+L70 -> 12.575000
C71: 氮氧化物 | D71: 69 | E71: 99 | F71: 92 | J71: =D71*G69*10000/(1000*1000*1000) -> 4.013134 | K71: =E71*H69*10000/(1000*1000*1000) -> 5.398865 | L71: =F71*I69*10000/(1000*1000*1000) -> 5.234892 | M71: =J71+K71+L71 -> 14.646891
C72: 汞及其 化合物 | D72: 0.000344 | E72: 0.000382 | F72: 0.000421 | J72: =D72*G69*10000/(1000*1000*1000) -> 0.000020 | K72: =E72*H69*10000/(1000*1000*1000) -> 0.000021 | L72: =F72*I69*10000/(1000*1000*1000) -> 0.000024 | M72: =J72+K72+L72 -> 0.000065
C73: 铅及其 化合物 | D73: 0.08 | E73: 0.06 | F73: 0.09 | J73: =D73*G69*10000/(1000*1000*1000) -> 0.004653 | K73: =E73*H69*10000/(1000*1000*1000) -> 0.003272 | L73: =F73*I69*10000/(1000*1000*1000) -> 0.005121 | M73: =SUM(J73:L73) -> 0.013046
C74: 硫酸雾 | D74: 13.1 | E74: 13.1 | F74: 13.1 | J74: =D74*G69*10000/(1000*1000*1000) -> 0.761914 | K74: =E74*H69*10000/(1000*1000*1000) -> 0.714395 | L74: =F74*I69*10000/(1000*1000*1000) -> 0.745403 | M74: 2.221712
C75: 镉及其 化合物 | D75: 0.00271 | E75: 0.00271 | F75: 0.00271 | J75: =D75*G69*10000/(1000*1000*1000) -> 0.000158 | K75: =E75*H69*10000/(1000*1000*1000) -> 0.000148 | L75: =F75*I69*10000/(1000*1000*1000) -> 0.000154 | M75: 0.000460
A76: DA259 | B76: 渣处理生产区加料口废气排口 | C76: 颗粒物 | D76: 6.2 | E76: 6.2 | F76: 6.2 | G76: =96176*24*31/10000 -> 7155.4944 | H76: =96176*24*30/10000 -> 6924.6720 | I76: =96176*24*31/10000 -> 7155.4944 | J76: =D76*G76*10000/(1000*1000*1000) -> 0.443641 | K76: =E76*H76*10000/(1000*1000*1000) -> 0.429330 | L76: =F76*I76*10000/(1000*1000*1000) -> 0.443641 | M76: 1.316611 | N76: 数据来源于监测报告
C77: 汞及其 化合物 | D77: 0.000407 | E77: 0.000407 | F77: 0.000407 | J77: =D77*G76*10000/(1000*1000*1000) -> 0.000029 | K77: =E77*H76*10000/(1000*1000*1000) -> 0.000028 | L77: =F77*I76*10000/(1000*1000*1000) -> 0.000029 | M77: 0.000086
C78: 铅及其 化合物 | D78: 0.11 | E78: 0.11 | F78: 0.11 | J78: =D78*G76*10000/(1000*1000*1000) -> 0.007871 | K78: =E78*H76*10000/(1000*1000*1000) -> 0.007617 | L78: =F78*I76*10000/(1000*1000*1000) -> 0.007871 | M78: 0.023359
C79: 镉及其 化合物 | D79: 0.000114 | E79: 0.000114 | F79: 0.000114 | J79: =D79*G76*10000/(1000*1000*1000) -> 0.000008 | K79: =E79*H76*10000/(1000*1000*1000) -> 0.000008 | L79: =F79*I76*10000/(1000*1000*1000) -> 0.000008 | M79: 0.000024
C80: 二氧化硫 | D80: 3 | E80: 3 | F80: 3 | J80: =D80*G76*10000/(1000*1000*1000) -> 0.214665 | K80: =E80*H76*10000/(1000*1000*1000) -> 0.207740 | L80: =F80*I76*10000/(1000*1000*1000) -> 0.214665 | M80: 0.637070
C81: 氮氧化物 | D81: 3 | E81: 3 | F81: 3 | J81: =D81*G76*10000/(1000*1000*1000) -> 0.214665 | K81: =E81*H76*10000/(1000*1000*1000) -> 0.207740 | L81: =F81*I76*10000/(1000*1000*1000) -> 0.214665 | M81: 0.637070
A82: DA010至DA016(共7个)排口 | B82: 电锌一车间浸出槽排口 | C82: 硫酸雾 | D82: 11.3 | E82: 11.3 | F82: 11.3 | G82: =7*5204.57*24*31/10000 -> 2710.5401 | H82: =7*5204.57*24*30/10000 -> 2623.1033 | I82: =7*5204.57*24*31/10000 -> 2710.5401 | J82: =D82*G82*10000/(1000*1000*1000) -> 0.306291 | K82: =E82*H82*10000/(1000*1000*1000) -> 0.296411 | L82: =F82*I82*10000/(1000*1000*1000) -> 0.306291 | M82: 0.908993 | N82: 电锌一车间34个、电锌二车间34个排口、电锌三车间55个、电锌四车间109个硫酸雾排口排放。排放浓度及流量按照等效同类排口监测个别排口后计算所有排口总量。
A83: DA017至DA023 （7个） | B83: 电锌一车间浸出槽排口 | C83: 硫酸雾 | D83: 11.3 | E83: 11.3 | F83: 11.3 | G83: =7*4430.25*24*31/10000 -> 2307.2742 | H83: =7*4430.25*24*30/10000 -> 2232.8460 | I83: =7*4430.25*24*31/10000 -> 2307.2742 | J83: =G83*D83*10000/(1000*1000*1000) -> 0.260722 | K83: =H83*E83*10000/(1000*1000*1000) -> 0.252312 | L83: =I83*F83*10000/(1000*1000*1000) -> 0.260722 | M83: =J83+K83+L83 -> 0.773756
A84: DA024至DA029（共6个排口） | B84: 电锌一车间浸出槽排口 | C84: 硫酸雾 | D84: 11.3 | E84: 11.3 | F84: 11.3 | G84: =6*4533.16*24*31/10000 -> 2023.6026 | H84: =6*4533.16*24*30/10000 -> 1958.3251 | I84: =6*4533.16*24*31/10000 -> 2023.6026 | J84: =D84*G84*10000/(1000*1000*1000) -> 0.228667 | K84: =E84*H84*10000/(1000*1000*1000) -> 0.221291 | L84: =F84*I84*10000/(1000*1000*1000) -> 0.228667 | M84: =J84+K84+L84 -> 0.678625
A85: DA030至DA036（共7个排口） | B85: 电锌一车间净化槽排口 | C85: 硫酸雾 | D85: 11.6 | E85: 11.6 | F85: 11.6 | G85: =7*4227.87*24*31/10000 -> 2201.8747 | H85: =7*4227.87*24*30/10000 -> 2130.8465 | I85: =7*4227.87*24*31/10000 -> 2201.8747 | J85: =G85*D85*10000/(1000*1000*1000) -> 0.255417 | K85: 0.247178 | L85: 0.255417 | M85: =SUM(J85:L85) -> 0.758013
A86: DA037至DA043（共7个排口） | B86: 电锌一车间净化槽排口 | C86: 硫酸雾 | D86: 11.8 | E86: 11.8 | F86: 11.8 | G86: =7*3110.63*24*31/10000 -> 1620.0161 | H86: =7*3110.63*24*30/10000 -> 1567.7575 | I86: =7*3110.63*24*31/10000 -> 1620.0161 | J86: 0.191162 | K86: 0.184995 | L86: 0.191162 | M86: =SUM(J86:L86) -> 0.567319
A87: DA044至DA051（共8个排口） | B87: 电锌二车间浸出槽排口 | C87: 硫酸雾 | D87: 11.8 | E87: 11.8 | F87: 11.8 | G87: =8*1987.56*24*31/10000 -> 1182.9957 | H87: =8*1987.56*24*30/10000 -> 1144.8346 | I87: =8*1987.56*24*31/10000 -> 1182.9957 | J87: =D87*G87*10000/(1000*1000*1000) -> 0.139593 | K87: =E87*H87*10000/(1000*1000*1000) -> 0.135090 | L87: =F87*I87*10000/(1000*1000*1000) -> 0.139593 | M87: 0.414277
A88: DA052至DA059（共8个排口） | B88: 电锌二车间浸出槽排口 | C88: 硫酸雾 | D88: 12 | E88: 12 | F88: 12 | G88: =8*1900.1*24*31/10000 -> 1130.9395 | H88: =8*1900.1*24*30/10000 -> 1094.4576 | I88: =8*1900.1*24*31/10000 -> 1130.9395 | J88: 0.135713 | K88: 0.131335 | L88: 0.135713 | M88: 0.402760
A89: DA060至DA066（共7个排口） | B89: 电锌二车间浸出槽排口 | C89: 硫酸雾 | D89: 11.8 | E89: 11.8 | F89: 11.8 | G89: =7*4415.26*24*31/10000 -> 2299.4674 | H89: =7*4415.26*24*31/10000 -> 2299.4674 | I89: =7*4415.26*24*31/10000 -> 2299.4674 | J89: 0.271337 | K89: 0.271337 | L89: 0.271337 | M89: 0.814011
A90: DA067至DA072（共6个排口） | B90: 电锌二车间净化槽排口 | C90: 硫酸雾 | D90: 11.2 | E90: 11.2 | F90: 11.2 | G90: =6*1866.09*24*31/10000 -> 833.0226 | H90: =6*1866.09*24*30/10000 -> 806.1509 | I90: =6*1866.09*24*31/10000 -> 833.0226 | J90: 0.093299 | K90: 0.090289 | L90: 0.093299 | M90: 0.276886
A91: DA073至DA077（共5个排口） | B91: 电锌二车间净化槽排口 | C91: 硫酸雾 | D91: 11.7 | E91: 11.7 | F91: 11.7 | G91: =5*1962.1*24*31/10000 -> 729.9012 | H91: =5*1962.1*24*30/10000 -> 706.3560 | I91: =5*1962.1*24*31/10000 -> 729.9012 | J91: 0.085398 | K91: 0.082644 | L91: 0.085398 | M91: 0.253441
A92: DA078至DA090（共13个排口） | B92: 电锌三车间浸出槽排口 | C92: 硫酸雾 | D92: 11.7 | E92: 11.7 | F92: 11.7 | G92: =5*1223.47*31*24/10000 -> 455.1308 | H92: =5*1223.47*30*24/10000 -> 440.4492 | I92: =5*1223.47*31*24/10000 -> 455.1308 | J92: 0.053250 | K92: 0.051533 | L92: 0.053250 | M92: 0.158033
A93: DA091至DA102（共12个排口） | B93: 电锌三车间浸出槽排口 | C93: 硫酸雾 | D93: 12 | E93: 12 | F93: 12 | G93: =13*1061.82*31*24/10000 -> 1026.9923 | H93: =13*1061.82*30*24/10000 -> 993.8635 | I93: =13*1061.82*31*24/10000 -> 1026.9923 | J93: 0.123239 | K93: 0.119264 | L93: 0.123239 | M93: 0.365742
A94: DA103至DA114（共12个排口） | B94: 电锌三车间浸出槽排口 | C94: 硫酸雾 | D94: 11.6 | E94: 11.6 | F94: 11.6 | G94: =12*1129.08*31*24/10000 -> 1008.0426 | H94: =12*1129.08*30*24/10000 -> 975.5251 | I94: =12*1129.08*31*24/10000 -> 1008.0426 | J94: 0.116933 | K94: 0.113161 | L94: 0.116933 | M94: 0.347027
A95: DA115至DA120（共6个排口） | B95: 电锌三车间净化槽排口 | C95: 硫酸雾 | D95: 11.4 | E95: 11.4 | F95: 11.4 | G95: =12*1149.95*24*31/10000 -> 1026.6754 | H95: =12*1149.95*24*30/10000 -> 993.5568 | I95: =12*1149.95*24*31/10000 -> 1026.6754 | J95: 0.117041 | K95: 0.113265 | L95: 0.117041 | M95: 0.347347
A96: DA121至DA126（共6个排口） | B96: 电锌三车间净化槽排口 | C96: 硫酸雾 | D96: 10.9 | E96: 10.9 | F96: 10.9 | G96: =6*1115.31*24*31/10000 -> 497.8744 | H96: =6*1115.31*24*30/10000 -> 481.8139 | I96: =6*1115.31*24*31/10000 -> 497.8744 | J96: 0.054268 | K96: 0.052518 | L96: 0.054268 | M96: 0.161054
A97: DA127至DA132（共6个排口） | B97: 电锌三车间净化槽排口 | C97: 硫酸雾 | D97: 12.1 | E97: 12.1 | F97: 12.1 | G97: =6*1176.18*24*31/10000 -> 525.0468 | H97: =6*1176.18*24*30/10000 -> 508.1098 | I97: =6*1176.18*24*31/10000 -> 525.0468 | J97: 0.063531 | K97: 0.061481 | L97: 0.063531 | M97: =SUM(J97:L97) -> 0.188543
A98: DA140至DA163（共24个排口） | B98: 电锌四车间浸出槽排口 | C98: 硫酸雾 | D98: 11.1 | E98: 11.1 | F98: 11.1 | G98: =4212.45*24*24*31/10000 -> 7521.7507 | H98: =4212.45*24*24*30/10000 -> 7279.1136 | I98: =4212.45*24*24*31/10000 -> 7521.7507 | J98: 0.834914 | K98: 0.807982 | L98: 0.834914 | M98: 2.477810
A99: DA164至187 （共24个排口） | B99: 电锌四车间浸出槽排口 | C99: 硫酸雾 | D99: 12.1 | E99: 12.1 | F99: 12.1 | G99: =5415.33*24*24*31/10000 -> 9669.6132 | H99: =5415.33*24*24*30/10000 -> 9357.6902 | I99: =5415.33*24*24*31/10000 -> 9669.6132 | J99: 1.170023 | K99: 1.132281 | L99: 1.170023 | M99: 3.472327
A100: DA188至DA204、DA206至DA211及DA254（共24个排口） | B100: 电锌四车间浸出槽排口 | C100: 硫酸雾 | D100: 12.1 | E100: 12.1 | F100: 12.1 | G100: =5119.55*24*24*31/10000 -> 9141.4685 | H100: =5119.55*24*24*30/10000 -> 8846.5824 | I100: =5119.55*24*24*31/10000 -> 9141.4685 | J100: 1.106118 | K100: 1.070436 | L100: 1.106118 | M100: 3.282672
A101: DA212至DA223（共12个排口） | B101: 电锌四车间净化槽排口 | C101: 硫酸雾 | D101: 11.9 | E101: 11.9 | F101: 11.9 | G101: =3807.51*12*24*31/10000 -> 3399.3449 | H101: =3807.51*12*24*30/10000 -> 3289.6886 | I101: =3807.51*12*24*31/10000 -> 3399.3449 | J101: 0.404522 | K101: 0.391473 | L101: 0.404522 | M101: 1.200517
A102: DA224至DA235（共12个排口） | B102: 电锌四车间净化槽排口 | C102: 硫酸雾 | D102: 12.2 | E102: 12.2 | F102: 12.2 | G102: =3483.3*12*24*31/10000 -> 3109.8902 | H102: =3483.3*12*24*30/10000 -> 3009.5712 | I102: =3483.3*12*24*31/10000 -> 3109.8902 | J102: 0.379407 | K102: 0.367168 | L102: 0.379407 | M102: 1.125981
A103: DA236至DA247（共12个排口） | B103: 电锌四车间净化槽排口 | C103: 硫酸雾 | D103: 12.1 | E103: 12.1 | F103: 12.1 | G103: =4172.51*12*24*31/10000 -> 3725.2169 | H103: =4172.51*12*24*30/10000 -> 3605.0486 | I103: =4172.51*12*24*31/10000 -> 3725.2169 | J103: 0.450751 | K103: 0.436211 | L103: 0.450751 | M103: 1.337713
A104: DA260 | B104: 硫酸锌车间1#浸出槽排口 | C104: 硫酸雾 | D104: 11.2 | E104: 11.2 | F104: 11.2 | G104: =2893.89*24*31/10000 -> 215.3054 | H104: =2893.89*24*30/10000 -> 208.3601 | I104: =2893.89*24*31/10000 -> 215.3054 | J104: 0.024114 | K104: 0.023336 | L104: 0.024114 | M104: =SUM(J104:L104) -> 0.071565 | N104: DA262、DA266、DA267、DA268、DA269、DA270、DA271、DA277、DA278、DA279、DA280排口对应的浸出槽本季度停用，数据来源于监测报告。
A105: DA261 | B105: 硫酸锌车间2#浸出槽排口 | C105: 硫酸雾 | D105: 12.9 | E105: 12.9 | F105: 12.9 | G105: =2897.55*24*31/10000 -> 215.5777 | H105: =2897.55*24*30/10000 -> 208.6236 | I105: =2897.55*24*31/10000 -> 215.5777 | J105: 0.027810 | K105: 0.026912 | L105: 0.027810 | M105: 0.082531
A106: DA262 | B106: 硫酸锌车间3#浸出槽排口 | C106: 硫酸雾 | J106: 0.000000 | K106: 0.000000 | L106: 0.000000 | M106: 0.000000
A107: DA263 | B107: 硫酸锌车间4#浸出槽排口 | C107: 硫酸雾 | D107: 11.9 | E107: 11.9 | F107: 11.9 | G107: =2896.79*24*31/10000 -> 215.5212 | H107: =2896.79*24*30/10000 -> 208.5689 | I107: =2896.79*24*31/10000 -> 215.5212 | J107: 0.025647 | K107: 0.024820 | L107: 0.025647 | M107: 0.076114
A108: DA264 | B108: 硫酸锌车间5#浸出槽排口 | C108: 硫酸雾 | D108: 11.6 | E108: 11.6 | F108: 11.6 | G108: =2926.9*24*31/10000 -> 217.7614 | H108: =2926.9*24*30/10000 -> 210.7368 | I108: =2926.9*24*31/10000 -> 217.7614 | J108: 0.025260 | K108: 0.024445 | L108: 0.025260 | M108: 0.074966
A109: DA265 | B109: 硫酸锌车间6#浸出槽排口 | C109: 硫酸雾 | D109: 12.9 | E109: 12.9 | F109: 12.9 | G109: =2864.62*24*31/10000 -> 213.1277 | H109: =2864.62*24*30/10000 -> 206.2526 | I109: =2864.62*24*31/10000 -> 213.1277 | J109: 0.027493 | K109: 0.026607 | L109: 0.027493 | M109: 0.081594
A110: DA266 | B110: 硫酸锌车间7#浸出槽排口 | C110: 硫酸雾 | J110: 0.000000 | K110: 0.000000 | L110: 0.000000 | M110: 0.000000
A111: DA267 | B111: 硫酸锌车间8#浸出槽排口 | C111: 硫酸雾 | J111: 0.000000 | K111: 0.000000 | L111: 0.000000 | M111: 0.000000
A112: DA268 | B112: 硫酸锌车间9#浸出槽排口 | C112: 硫酸雾 | J112: =D112*G112*10000/(1000*1000*1000) -> 0.000000 | K112: 0.000000 | L112: 0.000000 | M112: 0.000000
A113: DA269 | B113: 硫酸锌车间10#浸出槽排口 | C113: 硫酸雾 | J113: 0.000000 | K113: 0.000000 | L113: 0.000000 | M113: =SUM(J113:L113) -> 0.000000
A114: DA270 | B114: 硫酸锌车间11#浸出槽排口 | C114: 硫酸雾 | J114: 0.000000 | K114: 0.000000 | L114: 0.000000 | M114: 0.000000
A115: DA271 | B115: 硫酸锌车间12#浸出槽排口 | C115: 硫酸雾 | J115: =D115*G115*10000/(1000*1000*1000) -> 0.000000 | K115: =E115*H115*10000/(1000*1000*1000) -> 0.000000 | L115: =F115*I115*10000/(1000*1000*1000) -> 0.000000 | M115: 0.000000
A116: DA272 | B116: 硫酸锌车间1#净化槽排口 | C116: 硫酸雾 | D116: 11.8 | E116: 11.8 | F116: 11.8 | G116: =2246.75*24*31/10000 -> 167.1582 | H116: =2246.75*24*30/10000 -> 161.7660 | I116: =2246.75*24*31/10000 -> 167.1582 | J116: 0.019725 | K116: 0.019088 | L116: 0.019725 | M116: 0.058538
A117: DA273 | B117: 硫酸锌车间2#净化槽排口 | C117: 硫酸雾 | D117: 11.8 | E117: 11.8 | F117: 11.8 | G117: =2231.82*24*31/10000 -> 166.0474 | H117: =2231.82*24*30/10000 -> 160.6910 | I117: =2231.82*24*31/10000 -> 166.0474 | J117: 0.019594 | K117: 0.018962 | L117: 0.019594 | M117: 0.058149
A118: DA274 | B118: 硫酸锌车间3#净化槽排口 | C118: 硫酸雾 | D118: 11.4 | E118: 11.4 | F118: 11.4 | G118: =2264.46*24*31/10000 -> 168.4758 | H118: =2264.46*24*30/10000 -> 163.0411 | I118: =2264.46*24*31/10000 -> 168.4758 | J118: 0.019206 | K118: 0.018587 | L118: 0.019206 | M118: 0.056999
A119: DA275 | B119: 硫酸锌车间4#净化槽排口 | C119: 硫酸雾 | D119: 12.4 | E119: 12.4 | F119: 12.4 | G119: =2305.41*24*31/10000 -> 171.5225 | H119: =2305.41*24*30/10000 -> 165.9895 | I119: =2305.41*24*31/10000 -> 171.5225 | J119: 0.021269 | K119: 0.020583 | L119: 0.021269 | M119: 0.063120
A120: DA276 | B120: 硫酸锌车间5#净化槽排口 | C120: 硫酸雾 | D120: 12.1 | E120: 12.1 | F120: 12.1 | G120: =2193.94*24*31/10000 -> 163.2291 | H120: =2193.94*24*30/10000 -> 157.9637 | I120: =2193.94*24*31/10000 -> 163.2291 | J120: 0.019751 | K120: 0.019114 | L120: 0.019751 | M120: 0.058615
A121: DA277 | B121: 硫酸锌车间6#净化槽排口 | C121: 硫酸雾 | J121: 0.000000 | K121: 0.000000 | L121: 0.000000 | M121: 0.000000
A122: DA278 | B122: 硫酸锌车间7#净化槽排口 | C122: 硫酸雾 | J122: 0.000000 | K122: 0.000000 | L122: 0.000000 | M122: 0.000000
A123: DA279 | B123: 硫酸锌车间8#净化槽排口 | C123: 硫酸雾 | J123: 0.000000 | K123: 0.000000 | L123: 0.000000 | M123: =SUM(J123:L123) -> 0.000000
A124: DA280 | B124: 硫酸锌车间9#浸出槽排口 | C124: 硫酸雾 | J124: 0.000000 | K124: 0.000000 | L124: 0.000000 | M124: 0.000000
A125: DA281 | B125: 第一生产区熔炼炉废气排口 | C125: 二氧化硫 | D125: 46.5995 | E125: 30.5973 | G125: 347.7188 | H125: 824.8232 | J125: 0.173649 | K125: 0.376228 | L125: 0.000000 | M125: 0.549877 | N125: 11月下旬开始停产，12月全月停产，11月月度数据采用10月报告数据，四季度数据采样上季度报告数据，数据来源于在线监测数据及第三方监测报告
C126: 颗粒物 | D126: 0.3467 | E126: 3.2641 | J126: 0.001703 | K126: 0.057492 | L126: 0.000000 | M126: 0.059195
C127: 汞及其化合物 | D127: 0.000401 | E127: 0.000401 | J127: =D127*G125*10000/(1000*1000*1000) -> 0.000001 | K127: =E127*H125*10000/(1000*1000*1000) -> 0.000003 | L127: =F127*I125*10000/(1000*1000*1000) -> 0.000000 | M127: 0.000005
C128: 铅及其化合物 | D128: 0.09 | E128: 0.09 | J128: =D128*G125*10000/(1000*1000*1000) -> 0.000313 | K128: =E128*H125*10000/(1000*1000*1000) -> 0.000742 | L128: =F128*I125*10000/(1000*1000*1000) -> 0.000000 | M128: 0.001055
C129: 氮氧化物 | D129: 34 | E129: 34 | J129: =D129*G125*10000/(1000*1000*1000) -> 0.118224 | K129: =E129*H125*10000/(1000*1000*1000) -> 0.280440 | L129: =F129*I125*10000/(1000*1000*1000) -> 0.000000 | M129: 0.398664
C130: 硫酸雾 | D130: 6.85 | E130: 6.85 | J130: =D130*G125*10000/(1000*1000*1000) -> 0.023819 | K130: =E130*H125*10000/(1000*1000*1000) -> 0.056500 | L130: =F130*I125*10000/(1000*1000*1000) -> 0.000000 | M130: 0.080319
C131: 氟及其化合物 | D131: 1 | E131: 1 | J131: =D131*G125*10000/(1000*1000*1000) -> 0.003477 | K131: =E131*H125*10000/(1000*1000*1000) -> 0.008248 | L131: =F131*I125*10000/(1000*1000*1000) -> 0.000000 | M131: 0.011725
A132: DA282 | B132: 第二生产区中频炉废气排放口 | C132: 二氧化硫 | J132: 0.000000 | K132: 0.000000 | L132: 0.000000 | M132: 0.000000 | N132: 未投产
C133: 颗粒物 | J133: 0.000000 | K133: 0.000000 | L133: 0.000000 | M133: 0.000000
C134: 铅及其化合物 | J134: 0.000000 | K134: 0.000000 | L134: 0.000000 | M134: 0.000000
C135: 氮氧化物 | J135: 0.000000 | K135: 0.000000 | L135: 0.000000 | M135: 0.000000
A136: DA283 | B136: 第一生产区熔炼炉卫生收尘废气排口 | C136: 二氧化硫 | J136: =D136*G136*10000/(1000*1000*1000) -> 0.000000 | K136: =E136*H136*10000/(1000*1000*1000) -> 0.000000 | L136: =F136*I136*10000/(1000*1000*1000) -> 0.000000 | M136: 0.000000 | N136: 全季停车
C137: 颗粒物 | J137: =D137*G136*10000/(1000*1000*1000) -> 0.000000 | K137: =E137*H136*10000/(1000*1000*1000) -> 0.000000 | L137: =F137*I136*10000/(1000*1000*1000) -> 0.000000 | M137: =SUM(J137:L137) -> 0.000000
C138: 汞及其 化合物 | J138: =D138*G136*10000/(1000*1000*1000) -> 0.000000 | K138: =E138*H136*10000/(1000*1000*1000) -> 0.000000 | L138: =F138*I136*10000/(1000*1000*1000) -> 0.000000 | M138: 0.000000
C139: 铅及其 化合物 | J139: =D139*G136*10000/(1000*1000*1000) -> 0.000000 | K139: =E139*H136*10000/(1000*1000*1000) -> 0.000000 | L139: =F139*I136*10000/(1000*1000*1000) -> 0.000000 | M139: 0.000000
C140: 氮氧化物 | J140: =D140*G136*10000/(1000*1000*1000) -> 0.000000 | K140: =E140*H136*10000/(1000*1000*1000) -> 0.000000 | L140: =F140*I136*10000/(1000*1000*1000) -> 0.000000 | M140: 0.000000
C141: 硫酸雾 | J141: =D141*G136*10000/(1000*1000*1000) -> 0.000000 | K141: =E141*H136*10000/(1000*1000*1000) -> 0.000000 | L141: =F141*I136*10000/(1000*1000*1000) -> 0.000000 | M141: 0.000000
C142: 氟及其化合物 | J142: =D142*G136*10000/(1000*1000*1000) -> 0.000000 | K142: =E142*H136*10000/(1000*1000*1000) -> 0.000000 | L142: =F142*I136*10000/(1000*1000*1000) -> 0.000000 | M142: 0.000000
A143: DA284 | B143: 第二生产区浮渣筛分废气排口 | C143: 颗粒物 | D143: 7.1 | E143: 7.1 | F143: 7.1 | G143: =22812*24*31/10000 -> 1697.2128 | H143: =22812*24*30/10000 -> 1642.4640 | I143: =22812*24*31/10000 -> 1697.2128 | J143: =D143*G143*10000/(1000*1000*1000) -> 0.120502 | K143: =E143*H143*10000/(1000*1000*1000) -> 0.116615 | L143: =F143*I143*10000/(1000*1000*1000) -> 0.120502 | M143: 0.357619 | N143: 数据来源于第三方监测报告
A144: DA285 | B144: 渣处理生产区制酸尾气烟囱排口 | C144: 颗粒物 | D144: 4 | E144: 5.3 | F144: 5.1 | G144: =91139*24*31/10000 -> 6780.7416 | H144: =90025*24*30/10000 -> 6481.8000 | I144: =97418*24*31/10000 -> 7247.8992 | J144: =D144*G144*10000/(1000*1000*1000) -> 0.271230 | K144: =E144*H144*10000/(1000*1000*1000) -> 0.343535 | L144: =F144*I144*10000/(1000*1000*1000) -> 0.369643 | M144: 0.984408 | N144: 数据来源于第三方监测报告
C145: 二氧化硫 | D145: 8 | E145: 3 | F145: 3 | J145: =D145*G144*10000/(1000*1000*1000) -> 0.542459 | K145: =E145*H144*10000/(1000*1000*1000) -> 0.194454 | L145: =F145*I144*10000/(1000*1000*1000) -> 0.217437 | M145: 0.954350
C146: 氮氧化物 | D146: 141 | E146: 190 | F146: 57 | J146: =D146*G144*10000/(1000*1000*1000) -> 9.560846 | K146: =E146*H144*10000/(1000*1000*1000) -> 12.315420 | L146: =F146*I144*10000/(1000*1000*1000) -> 4.131303 | M146: 26.007568
C147: 隔及其化合物 | D147: 0.112 | E147: 0.0113 | F147: 0.00412 | J147: =D147*G144*10000/(1000*1000*1000) -> 0.007594 | K147: =E147*H144*10000/(1000*1000*1000) -> 0.000732 | L147: =F147*I144*10000/(1000*1000*1000) -> 0.000299 | M147: 0.008625
C148: 铅及其化合物 | D148: 0.07 | E148: 0.07 | F148: 0.07 | J148: =D148*G144*10000/(1000*1000*1000) -> 0.004747 | K148: =E148*H144*10000/(1000*1000*1000) -> 0.004537 | L148: =F148*I144*10000/(1000*1000*1000) -> 0.005074 | M148: =SUM(J148:L148) -> 0.014357
C149: 汞及其化合物 | D149: 0.000521 | E149: 0.000432 | F149: 0.000309 | J149: =D149*G144*10000/(1000*1000*1000) -> 0.000035 | K149: =E149*H144*10000/(1000*1000*1000) -> 0.000028 | L149: =F149*I144*10000/(1000*1000*1000) -> 0.000022 | M149: 0.000086
C150: 硫酸雾 | D150: 12.6 | E150: 12.6 | F150: 12.6 | J150: =D150*G144*10000/(1000*1000*1000) -> 0.854373 | K150: =E150*H144*10000/(1000*1000*1000) -> 0.816707 | L150: =F150*I144*10000/(1000*1000*1000) -> 0.913235 | M150: 2.584316
A151: DA286 | B151: 渣处理生产区干燥窑废气排口 | C151: 颗粒物 | D151: 8.7 | E151: 8.7 | F151: 8.7 | G151: =76016*24*31/10000 -> 5655.5904 | H151: =76016*24*30/10000 -> 5473.1520 | I151: =76016*24*31/10000 -> 5655.5904 | J151: =D151*G151*10000/(1000*1000*1000) -> 0.492036 | K151: =E151*H151*10000/(1000*1000*1000) -> 0.476164 | L151: =F151*I151*10000/(1000*1000*1000) -> 0.492036 | M151: 1.460237 | N151: 数据来源于第三方监测报告
C152: 二氧化硫 | D152: 3 | E152: 3 | F152: 3 | J152: =D152*G151*10000/(1000*1000*1000) -> 0.169668 | K152: =E152*H151*10000/(1000*1000*1000) -> 0.164195 | L152: =F152*I151*10000/(1000*1000*1000) -> 0.169668 | M152: 0.503530
C153: 铅及其化合物 | D153: 0.0857 | E153: 0.0857 | F153: 0.0857 | J153: =D153*G151*10000/(1000*1000*1000) -> 0.004847 | K153: =E153*H151*10000/(1000*1000*1000) -> 0.004690 | L153: =F153*I151*10000/(1000*1000*1000) -> 0.004847 | M153: 0.014384
C154: 氮氧化物 | D154: 15 | E154: 15 | F154: 15 | J154: =D154*G151*10000/(1000*1000*1000) -> 0.848339 | K154: =E154*H151*10000/(1000*1000*1000) -> 0.820973 | L154: =F154*I151*10000/(1000*1000*1000) -> 0.848339 | M154: 2.517650
A155: DA287 | B155: 渣处理生产区卫生收尘排气筒 | C155: 颗粒物 | D155: 6.8 | E155: 6.3 | F155: 7.5 | G155: =113695*24*30/10000 -> 8186.0400 | H155: =92331*24*30/10000 -> 6647.8320 | I155: =115186*24*31/10000 -> 8569.8384 | J155: =D155*G155*10000/(1000*1000*1000) -> 0.55665072 | K155: =E155*H155*10000/(1000*1000*1000) -> 0.418813416 | L155: =F155*I155*10000/(1000*1000*1000) -> 0.64273788 | M155: 1.618202 | N155: 数据来源于第三方监测报告
C156: 二氧化硫 | D156: 3 | E156: 3 | F156: 3 | J156: =D156*G155*10000/(1000*1000*1000) -> 0.2455812 | K156: =E156*H155*10000/(1000*1000*1000) -> 0.19943496 | L156: =F156*I155*10000/(1000*1000*1000) -> 0.257095152 | M156: 0.702111
C157: 氮氧化物 | D157: 3 | E157: 3 | F157: 3 | J157: =D157*G155*10000/(1000*1000*1000) -> 0.2455812 | K157: =E157*H155*10000/(1000*1000*1000) -> 0.19943496 | L157: =F157*I155*10000/(1000*1000*1000) -> 0.257095152 | M157: 0.702111
C158: 隔及其化合物 | D158: 0.129 | E158: 0.121 | F158: 0.00189 | J158: =D158*G155*10000/(1000*1000*1000) -> 0.010560 | K158: =E158*H155*10000/(1000*1000*1000) -> 0.008044 | L158: =F158*I155*10000/(1000*1000*1000) -> 0.000162 | M158: 0.018766
C159: 铅及其化合物 | D159: 0.06 | E159: 0.1 | F159: 0.08 | J159: =D159*G155*10000/(1000*1000*1000) -> 0.004912 | K159: =E159*H155*10000/(1000*1000*1000) -> 0.006648 | L159: =F159*I155*10000/(1000*1000*1000) -> 0.006856 | M159: 0.018415
C160: 汞及其化合物 | D160: 0.000469 | E160: 0.000407 | F160: 0.000588 | J160: =D160*G155*10000/(1000*1000*1000) -> 0.000038 | K160: =E160*H155*10000/(1000*1000*1000) -> 0.000027 | L160: =F160*I155*10000/(1000*1000*1000) -> 0.000050 | M160: 0.000116
A161: 2024水污染物排放量
A162: 排污口编号 | B162: 排污口名称 | C162: 污染物名称 | D162: 浓度(mg/L) | G162: 流量(m³) | J162: 排放量（吨） | N162: 备注
D163: 10月 | E163: 11月 | F163: 12月 | G163: 10月 | H163: 11月 | I163: 12月 | J163: 10月 | K163: 11月 | L163: 12月 | M163: 合计
A164: DW002 | B164: 1#排放口 | C164: 总镉 | D164: 0.0111 | E164: 0.0125 | F164: 0.0125 | G164: 87696.43 | H164: 99532.38 | I164: 101316.419 | J164: =D164*G164*1000/(1000*1000*1000) -> 0.000973 | K164: =E164*H164*1000/(1000*1000*1000) -> 0.001244 | L164: =F164*I164*1000/(1000*1000*1000) -> 0.001266 | M164: =SUM(J164:L164) -> 0.003484 | N164: 数据来源于监测报告及在线监测数据
C165: 总镍 | D165: 0.05 | E165: 0.05 | F165: 0.05 | J165: =D165*G164*1000/(1000*1000*1000) -> 0.004385 | K165: =E165*H164*1000/(1000*1000*1000) -> 0.004977 | L165: =F165*I164*1000/(1000*1000*1000) -> 0.005066 | M165: 0.014427
C166: 总汞 | D166: 0.00055 | E166: 0.00082 | F166: 0.00174 | J166: =D166*G164*1000/(1000*1000*1000) -> 0.000048 | K166: =E166*H164*1000/(1000*1000*1000) -> 0.000082 | L166: =F166*I164*1000/(1000*1000*1000) -> 0.000176 | M166: 0.000306
C167: 总铅 | D167: 0.0666 | E167: 0.0232 | F167: 0.0341 | J167: =D167*G164*1000/(1000*1000*1000) -> 0.005841 | K167: =E167*H164*1000/(1000*1000*1000) -> 0.002309 | L167: =F167*I164*1000/(1000*1000*1000) -> 0.003455 | M167: 0.011605
C168: 总砷 | D168: 0.0036 | E168: 0.0035 | F168: 0.0037 | J168: =D168*G164*1000/(1000*1000*1000) -> 0.000316 | K168: =E168*H164*1000/(1000*1000*1000) -> 0.000348 | L168: =F168*I164*1000/(1000*1000*1000) -> 0.000376 | M168: 0.001040
C169: 化学需氧量（COD） | D169: 21.86 | E169: 23.18 | F169: 24.25 | J169: =D169*G164*1000/(1000*1000*1000) -> 1.917044 | K169: =E169*H164*1000/(1000*1000*1000) -> 2.307161 | L169: =F169*I164*1000/(1000*1000*1000) -> 2.456923 | M169: 6.681128
C170: 氨氮 | D170: 0.7235 | E170: 0.9564 | F170: 1.0333 | J170: =D170*G164*1000/(1000*1000*1000) -> 0.063448 | K170: =E170*H164*1000/(1000*1000*1000) -> 0.095193 | L170: =F170*I164*1000/(1000*1000*1000) -> 0.104690 | M170: 0.263331
C171: 总锌 | D171: 0.05 | E171: 0.0125 | F171: 0.0301 | J171: =D171*G164*1000/(1000*1000*1000) -> 0.004385 | K171: =E171*H164*1000/(1000*1000*1000) -> 0.001244 | L171: =F171*I164*1000/(1000*1000*1000) -> 0.003050 | M171: 0.008679
C172: 氟化物 | D172: 0.324 | E172: 0.324 | F172: 0.324 | J172: =D172*G164*1000/(1000*1000*1000) -> 0.028414 | K172: =E172*H164*1000/(1000*1000*1000) -> 0.032248 | L172: =F172*I164*1000/(1000*1000*1000) -> 0.032827 | M172: 0.093489
C173: 总氮 | D173: 7.4448 | E173: 10.262 | F173: 9.3187 | J173: =D173*G164*1000/(1000*1000*1000) -> 0.652882 | K173: =E173*H164*1000/(1000*1000*1000) -> 1.021401 | L173: =F173*I164*1000/(1000*1000*1000) -> 0.944138 | M173: 2.618422
C174: 总铊 | D174: 0.0002 | E174: 0.0002 | F174: 0.0002 | J174: =D174*G164*1000/(1000*1000*1000) -> 0.000018 | K174: =E174*H164*1000/(1000*1000*1000) -> 0.000020 | L174: =F174*I164*1000/(1000*1000*1000) -> 0.000020 | M174: 0.000058
C175: 总铬 | D175: 0.004 | E175: 0.019 | F175: 0.008 | J175: =D175*G164*1000/(1000*1000*1000) -> 0.000351 | K175: =E175*H164*1000/(1000*1000*1000) -> 0.001891 | L175: =F175*I164*1000/(1000*1000*1000) -> 0.000811 | M175: 0.003052
C176: 总铜 | D176: 0.05 | E176: 0.0125 | F176: 0.0125 | J176: =D176*G164*1000/(1000*1000*1000) -> 0.004385 | K176: =E176*H164*1000/(1000*1000*1000) -> 0.001244 | L176: =F176*I164*1000/(1000*1000*1000) -> 0.001266 | M176: 0.006895
C177: 悬浮物 | D177: 14 | E177: 14 | F177: 14 | J177: =D177*G164*1000/(1000*1000*1000) -> 1.227750 | K177: =E177*H164*1000/(1000*1000*1000) -> 1.393453 | L177: =F177*I164*1000/(1000*1000*1000) -> 1.418430 | M177: 4.039633
C178: 硫化物 | D178: 0.01 | E178: 0.01 | F178: 0.01 | J178: =D178*G164*1000/(1000*1000*1000) -> 0.000877 | K178: =E178*H164*1000/(1000*1000*1000) -> 0.000995 | L178: =F178*I164*1000/(1000*1000*1000) -> 0.001013 | M178: 0.002885
C179: 总磷 | D179: 0.5887 | E179: 0.6233 | F179: 0.6155 | J179: =D179*G164*1000/(1000*1000*1000) -> 0.051627 | K179: =E179*H164*1000/(1000*1000*1000) -> 0.062039 | L179: =F179*I164*1000/(1000*1000*1000) -> 0.062359 | M179: 0.176024
A180: DW005 | B180: 车间排口 | C180: 总汞 | D180: 0.00275 | E180: 0.00530 | F180: 0.00547 | G180: 21313.4 | H180: 20124.2 | I180: 21069.1 | J180: =D180*G180*1000/(1000*1000*1000) -> 0.000059 | K180: =E180*H180*1000/(1000*1000*1000) -> 0.000107 | L180: =F180*I180*1000/(1000*1000*1000) -> 0.000115 | M180: 0.000280 | N180: DW005为车间废水排放口。数据来源于监测报告
C181: 总镉 | D181: 0.01135 | E181: 0.01250 | F181: 0.01250 | J181: =D181*G180*1000/(1000*1000*1000) -> 0.000242 | K181: =E181*H180*1000/(1000*1000*1000) -> 0.000252 | L181: =F181*I180*1000/(1000*1000*1000) -> 0.000263 | M181: =SUM(J181:L181) -> 0.000757
C182: 总砷 | D182: 0.00367 | E182: 0.00710 | F182: 0.01019 | J182: =D182*G180*1000/(1000*1000*1000) -> 0.000078 | K182: =E182*H180*1000/(1000*1000*1000) -> 0.000143 | L182: =F182*I180*1000/(1000*1000*1000) -> 0.000215 | M182: 0.000436
C183: 总铅 | D183: 0.07435 | E183: 0.06000 | F183: 0.05000 | J183: =D183*G180*1000/(1000*1000*1000) -> 0.001585 | K183: =E183*H180*1000/(1000*1000*1000) -> 0.001207 | L183: =F183*I180*1000/(1000*1000*1000) -> 0.001053 | M183: 0.003846
C184: 总铬 | D184: 0.004 | E184: 0.018 | F184: 0.01 | J184: =D184*G180*1000/(1000*1000*1000) -> 0.000085 | K184: =E184*H180*1000/(1000*1000*1000) -> 0.000362 | L184: =F184*I180*1000/(1000*1000*1000) -> 0.000211 | M184: 0.000658
C185: 总镍 | D185: 0.08 | E185: 0.05 | F185: 0.05 | J185: =D185*G180*1000/(1000*1000*1000) -> 0.001705 | K185: =E185*H180*1000/(1000*1000*1000) -> 0.001006 | L185: =F185*I180*1000/(1000*1000*1000) -> 0.001053 | M185: 0.003765
C186: 总铊 | D186: 0.00011 | E186: 0.00011 | F186: 0.00011 | J186: =D186*G180*1000/(1000*1000*1000) -> 0.000002 | K186: =E186*H180*1000/(1000*1000*1000) -> 0.000002 | L186: =F186*I180*1000/(1000*1000*1000) -> 0.000002 | M186: 0.000007
A187: DW012 | B187: 车间排口 | C187: 总汞 | J187: =D187*G187*1000/(1000*1000*1000) -> 0.000000 | K187: =E187*H187*1000/(1000*1000*1000) -> 0.000000 | L187: =F187*I187*1000/(1000*1000*1000) -> 0.000000 | M187: =SUM(J187:L187) -> 0.000000 | N187: DW012为车间废水排放口。全季度停产停排。
C188: 总镉 | J188: =D188*G187*1000/(1000*1000*1000) -> 0.000000 | K188: =E188*H187*1000/(1000*1000*1000) -> 0.000000 | L188: =F188*I187*1000/(1000*1000*1000) -> 0.000000 | M188: 0.000000
C189: 总砷 | J189: =D189*G187*1000/(1000*1000*1000) -> 0.000000 | K189: =E189*H187*1000/(1000*1000*1000) -> 0.000000 | L189: =F189*I187*1000/(1000*1000*1000) -> 0.000000 | M189: 0.000000
C190: 总铅 | J190: =D190*G187*1000/(1000*1000*1000) -> 0.000000 | K190: =E190*H187*1000/(1000*1000*1000) -> 0.000000 | L190: =F190*I187*1000/(1000*1000*1000) -> 0.000000 | M190: 0.000000
C191: 总铬 | J191: =D191*G187*1000/(1000*1000*1000) -> 0.000000 | K191: =E191*H187*1000/(1000*1000*1000) -> 0.000000 | L191: =F191*I187*1000/(1000*1000*1000) -> 0.000000 | M191: 0.000000
C192: 总镍 | J192: =D192*G187*1000/(1000*1000*1000) -> 0.000000 | K192: =E192*H187*1000/(1000*1000*1000) -> 0.000000 | L192: =F192*I187*1000/(1000*1000*1000) -> 0.000000 | M192: 0.000000
C193: 总铊 | J193: =D193*G187*1000/(1000*1000*1000) -> 0.000000 | K193: =E193*H187*1000/(1000*1000*1000) -> 0.000000 | L193: =F193*I187*1000/(1000*1000*1000) -> 0.000000 | M193: 0.000000
